bitfinex/quotes_SOLUSD_20241007
["timestamp","ask_amount","ask_price","bid_price","bid_amount"]
[1728294360836,0.1,147.49,147.48,6.90599]
[1728294361151,0.1,147.49,147.48,32.03855994]
[1728294362625,0.1,147.49,147.48,66.91773446]
[1728294362831,0.1,147.49,147.48,67.04322446]
[1728294363347,0.1,147.49,147.48,65.6876148]
[1728294363731,0.1,147.49,147.48,67.04295628]
[1728294364238,0.1,147.49,147.48,67.04297843]
[1728294364421,0.1,147.49,147.48,65.6876148]
[1728294364854,0.1,147.49,147.48,28.13600776]
[1728294365446,0.1,147.49,147.48,43.01525856]
[1728294366060,0.1,147.49,147.48,67.04312256]
[1728294369156,0.1,147.49,147.48,80.808364]
[1728294369364,0.1,147.49,147.48,50.808364]
[1728294369657,0.1,147.49,147.48,7.03148]
[1728294370356,0.1,147.49,147.48,8.38730013]
[1728294371353,0.1,147.49,147.48,32.16418413]
[1728294371537,0.1,147.49,147.48,67.04343493]
[1728294374161,0.1,147.49,147.48,50.808364]
[1728294374463,0.1,147.49,147.48,28.1361356]
[1728294374642,0.1,147.49,147.48,43.0153864]
[1728294375563,0.1,147.49,147.48,67.0432504]
[1728294377565,0.0001,147.49,147.48,67.0432504]
[1728294378982,6.5381,147.57,147.56,6.7769]
[1728294379147,15.0552,147.58,147.56,1.48068823]
[1728294379753,15.0552,147.58,147.56,0.12549]
[1728294380046,15.0552,147.58,147.57,6.90189]
[1728294381568,15.0552,147.58,147.57,7.02738]
[1728294386974,16.7491454,147.58,147.52,16.946]
[1728294387155,15.0552,147.58,147.52,16.946]
[1728294387343,21.8312,147.58,147.54,23.7218]
[1728294388460,1.69424675,147.57,147.54,16.9443]
[1728294388675,8.47074675,147.57,147.54,16.9443]
[1728294389442,21.8315,147.58,147.54,25.07762386]
[1728294389670,23.52569775,147.58,147.54,23.7221]
[1728294390565,21.8315,147.58,147.54,23.7221]
[1728294391349,15.0552,147.58,147.55,6.7773]
[1728294393663,1.69411754,147.57,147.54,23.7216]
[1728294393863,6.7769,147.56,147.52,6.7785]
[1728294394169,1.69444734,147.57,147.53,16.9453]
[1728294394755,15.0552,147.58,147.55,23.7204]
[1728294394979,21.8313,147.58,147.55,16.9432]
[1728294395181,15.0552,147.58,147.55,23.7205]
[1728294395354,21.8312,147.58,147.55,23.7205]
[1728294395672,21.8312,147.58,147.55,16.9432]
[1728294395878,1.69424952,147.57,147.55,16.9432]
[1728294396576,1.69424952,147.57,147.52,16.946]
[1728294396880,6.7777,147.55,147.51,6.7791]
[1728294397060,15.9577,147.54,147.51,6.7791]
[1728294397377,22.7357,147.54,147.5,6.7796]
[1728294398466,22.7357,147.54,147.51,0.12549]
[1728294398780,8.47295293,147.53,147.49,23.7292]
[1728294399784,6.7788,147.52,147.48,6.7804]
[1728294400573,8.47305293,147.53,147.49,6.7799]
[1728294401957,6.7788,147.52,147.48,23.7314]
[1728294402164,8.47305293,147.53,147.49,6.7801]
[1728294403967,6.7788,147.52,147.48,23.7313]
[1728294404166,1.69491886,147.51,147.48,23.7313]
[1728294404659,8.47411886,147.51,147.48,16.951]
[1728294404858,1.69491886,147.51,147.48,23.7314]
[1728294405058,1.69499026,147.51,147.48,23.7314]
[1728294409187,1.69498768,147.53,147.49,1.35599014]
[1728294409380,1.69498768,147.53,147.5,6.7795]
[1728294411072,8.47328768,147.53,147.48,16.951]
[1728294411266,8.47328768,147.53,147.49,6.7799]
[1728294414367,1.69498768,147.53,147.48,16.951]
[1728294414572,6.779,147.52,147.48,16.951]
[1728294414780,1.69496653,147.51,147.48,23.7311]
[1728294415079,8.47416653,147.51,147.48,23.7311]
[1728294415588,16.1424,147.49,147.47,6.7809]
[1728294415764,16.1424,147.49,147.48,6.7805]
[1728294416276,1.69495289,147.52,147.5,6.7795]
[1728294416478,17.39006708,147.53,147.51,6.7791]
[1728294416685,15.6952,147.53,147.49,16.9498]
[1728294416990,15.6952,147.53,147.5,6.7795]
[1728294417163,17.39003091,147.53,147.5,6.7795]
[1728294417569,24.16853091,147.53,147.49,23.7296]
[1728294418287,24.16853091,147.53,147.5,6.7796]
[1728294419592,24.16853091,147.53,147.49,23.7298]
[1728294420088,6.7788,147.52,147.49,23.7298]
[1728294420285,6.78,147.5,147.46,23.7339]
[1728294420479,1.69517528,147.49,147.46,23.7339]
[1728294421081,8.47527528,147.49,147.46,23.7339]
[1728294421284,15.1432,147.48,147.45,6.7817]
[1728294421471,21.9237,147.48,147.43,16.956]
[1728294421669,21.9237,147.48,147.44,6.782]
[1728294422069,1.69530827,147.47,147.43,16.956]
[1728294422265,1.69530827,147.47,147.43,23.7387]
[1728294422484,1.69530827,147.47,147.4,23.7437]
[1728294422485,15.8364,147.45,147.4,23.7437]
[1728294422801,1.69588642,147.44,147.41,6.7836]
[1728294424270,1.69588642,147.44,147.4,23.744]
[1728294425681,8.47828642,147.44,147.4,23.744]
[1728294426392,6.7829,147.43,147.4,16.9599]
[1728294426579,1.6959404,147.42,147.39,6.7846]
[1728294426779,6.7829,147.43,147.39,6.7846]
[1728294426987,1.69598125,147.42,147.39,6.7846]
[1728294427290,17.53240693,147.45,147.42,6.7833]
[1728294427492,15.8364,147.45,147.4,1.48229555]
[1728294428300,15.8364,147.45,147.43,23.7393]
[1728294428506,15.8364,147.45,147.43,16.9568]
[1728294429476,15.8364,147.45,147.42,6.7832]
[1728294429676,17.53203812,147.45,147.42,0.12549]
[1728294429997,17.53203812,147.45,147.41,6.90909]
[1728294430193,17.53203812,147.45,147.42,6.7832]
[1728294430971,17.53203812,147.45,147.4,17.08559]
[1728294431303,1.69579723,147.44,147.41,6.7836]
[1728294432303,15.8364,147.45,147.42,6.7832]
[1728294432473,17.5320358,147.45,147.43,6.7828]
[1728294433275,17.5320358,147.45,147.42,23.7412]
[1728294435579,1.69568008,147.48,147.43,1.35654406]
[1728294435906,15.9287,147.49,147.47,6.7805]
[1728294436092,15.9287,147.49,147.48,6.7805]
[1728294436294,15.9287,147.49,147.47,6.7808]
[1728294436675,15.9287,147.49,147.48,6.7805]
[1728294437606,15.9287,147.49,147.46,23.7348]
[1728294440605,17.62387812,147.49,147.46,23.7348]
[1728294442101,17.62387812,147.49,147.46,16.9534]
[1728294442282,17.62387812,147.49,147.45,0.12549]
[1728294442283,1.69532053,147.48,147.45,0.12549]
[1728294442486,8.47592053,147.48,147.44,6.782]
[1728294443505,1.69532053,147.48,147.43,1.60728804]
[1728294443691,1.69532053,147.48,147.46,6.7814]
[1728294444214,15.9287,147.49,147.46,6.7814]
[1728294444376,15.9287,147.49,147.46,1.35628359]
[1728294444712,15.9287,147.49,147.48,6.7805]
[1728294445502,15.9287,147.49,147.46,1.35628359]
[1728294445682,15.9287,147.49,147.47,6.7808]
[1728294446297,1.6951703,147.48,147.45,23.7363]
[1728294447480,8.4758703,147.48,147.45,16.9547]
[1728294447998,8.4758703,147.48,147.44,6.7823]
[1728294448200,1.6951703,147.48,147.43,0.12549]
[1728294448511,6.7811,147.47,147.43,6.90819]
[1728294448818,1.69550238,147.46,147.43,6.90819]
[1728294449314,1.69550238,147.46,147.42,16.9574]
[1728294449612,6.7815,147.46,147.42,23.7404]
[1728294449821,1.69556472,147.47,147.42,16.9574]
[1728294449995,8.47666472,147.47,147.43,6.7825]
[1728294450986,6.7815,147.46,147.42,23.7405]
[1728294451192,1.69564442,147.45,147.42,23.7405]
[1728294452296,1.69564442,147.45,147.39,16.9608]
[1728294452494,15.2905,147.46,147.39,16.9608]
[1728294452694,1.69581151,147.45,147.39,16.9608]
[1728294453096,6.7833,147.43,147.39,23.7454]
[1728294453317,1.69607967,147.42,147.39,23.7454]
[1728294453521,1.69607967,147.42,147.39,16.9608]
[1728294454047,8.47947967,147.42,147.39,16.9608]
[1728294455621,8.47947967,147.42,147.38,6.7847]
[1728294458711,15.9001,147.41,147.38,6.7847]
[1728294458908,1.69618575,147.4,147.38,6.7847]
[1728294459512,1.69618575,147.4,147.36,16.9643]
[1728294459712,8.48038575,147.4,147.36,23.7501]
[1728294460816,1.69618575,147.4,147.37,6.7856]
[1728294463819,1.69618575,147.4,147.36,16.9643]
[1728294464204,24.3806415,147.41,147.37,6.7853]
[1728294465123,6.7843,147.4,147.36,23.7501]
[1728294465330,1.69627857,147.39,147.36,23.7501]
[1728294465509,1.69627857,147.39,147.36,16.9643]
[1728294465821,6.7847,147.39,147.36,16.9643]
[1728294466222,8.48111451,147.39,147.36,16.9643]
[1728294466404,8.48111451,147.39,147.35,6.7864]
[1728294466906,6.7851,147.38,147.35,6.7864]
[1728294467419,6.7848,147.39,147.35,6.7864]
[1728294467627,1.69645027,147.38,147.35,6.7864]
[1728294467819,8.48185027,147.38,147.34,6.7869]
[1728294469106,1.69655462,147.4,147.35,16.966]
[1728294469609,6.7847,147.39,147.35,23.7524]
[1728294469818,1.69647582,147.38,147.35,23.7524]
[1728294470806,8.48127105,147.39,147.35,23.7524]
[1728294471536,1.69647105,147.39,147.32,0.12549]
[1728294471706,1.69647105,147.39,147.32,16.9689]
[1728294471912,6.7861,147.36,147.33,6.7872]
[1728294472530,6.786,147.37,147.33,6.7872]
[1728294472735,6.786,147.37,147.34,6.7869]
[1728294473334,6.786,147.37,147.32,16.9689]
[1728294473635,1.69667154,147.36,147.33,6.7871]
[1728294474931,24.85277154,147.36,147.32,23.7567]
[1728294475132,23.1561,147.36,147.32,23.7567]
[1728294475338,1.69682489,147.35,147.32,23.7567]
[1728294476532,1.69682489,147.35,147.29,33.9452]
[1728294476731,8.48372489,147.35,147.31,6.788]
[1728294477522,8.48372489,147.35,147.29,50.9174]
[1728294477523,6.7878,147.33,147.29,23.7613]
[1728294477717,1.69716679,147.32,147.29,23.7613]
[1728294479225,8.48516679,147.32,147.29,16.9722]
[1728294481744,8.48516679,147.32,147.28,6.7896]
[1728294482046,16.4845,147.3,147.27,6.7901]
[1728294482218,23.2734,147.3,147.26,23.7664]
[1728294482419,24.97082378,147.3,147.26,23.7664]
[1728294482738,23.2734,147.3,147.26,23.7664]
[1728294483147,16.4845,147.3,147.27,6.7901]
[1728294483323,18.18192278,147.3,147.27,6.7901]
[1728294484841,24.97082278,147.3,147.26,23.7664]
[1728294487543,18.18192278,147.3,147.23,16.9793]
[1728294487840,6.7898,147.28,147.24,6.7914]
[1728294488144,8.48746303,147.28,147.24,6.7914]
[1728294488520,1.69766303,147.28,147.25,6.791]
[1728294488723,8.4870628,147.29,147.25,6.791]
[1728294489621,1.6976628,147.29,147.23,16.9793]
[1728294489839,6.7898,147.28,147.24,6.7916]
[1728294490141,1.69774337,147.28,147.25,6.7911]
[1728294491138,16.4845,147.3,147.29,6.7893]
[1728294491641,16.4845,147.3,147.28,6.7896]
[1728294491819,16.4845,147.3,147.27,23.7655]
[1728294492019,1.69740219,147.29,147.27,16.9754]
[1728294492441,23.2733,147.3,147.27,16.9754]
[1728294492850,1.69748486,147.29,147.27,16.9754]
[1728294493035,23.2733,147.3,147.27,16.9754]
[1728294493237,1.69748449,147.29,147.27,16.9754]
[1728294493423,23.2733,147.3,147.27,16.9754]
[1728294493722,1.69748886,147.29,147.27,16.9754]
[1728294494054,1.69748886,147.29,147.26,6.7905]
[1728294494746,8.48678886,147.29,147.25,6.7908]
[1728294495554,1.69748886,147.29,147.25,6.7908]
[1728294495737,6.7898,147.28,147.24,23.7694]
[1728294496050,1.69775064,147.27,147.24,23.7694]
[1728294501352,8.48805064,147.27,147.24,16.978]
[1728294501853,8.48805064,147.27,147.17,40.1686]
[1728294501854,1.69775064,147.27,147.21,16.9815]
[1728294502157,6.7917,147.24,147.21,16.9815]
[1728294502464,8.48953163,147.25,147.21,23.7744]
[1728294505043,6.7916,147.24,147.21,16.9815]
[1728294506760,8.48953163,147.25,147.21,23.7744]
[1728294508557,6.7917,147.24,147.21,16.9815]
[1728294508763,1.69822937,147.23,147.21,16.9815]
[1728294510564,1.69822937,147.23,147.2,6.7933]
[1728294511040,8.49032937,147.23,147.19,6.7938]
[1728294511757,6.7925,147.22,147.18,23.7792]
[1728294511953,1.69846857,147.21,147.18,23.7792]
[1728294512156,1.6984213,147.21,147.18,23.7792]
[1728294513866,6.7922,147.23,147.19,6.7936]
[1728294514162,6.6437,147.26,147.2,24.027864]
[1728294514163,8.34195799,147.26,147.2,24.027864]
[1728294514344,8.34195799,147.26,147.23,6.7916]
[1728294514345,1.69825799,147.26,147.23,6.7916]
[1728294515445,16.43,147.27,147.24,6.7915]
[1728294515647,18.12783703,147.27,147.24,6.7915]
[1728294517747,24.91803703,147.27,147.24,6.7915]
[1728294518159,24.91803703,147.27,147.23,6.7919]
[1728294519663,18.12783703,147.27,147.24,6.7913]
[1728294519969,18.1277848,147.27,147.25,6.7911]
[1728294520153,18.1277848,147.27,147.24,16.9788]
[1728294520466,16.43,147.27,147.24,16.9788]
[1728294520644,23.1735,147.31,147.25,1.35821493]
[1728294520845,16.385,147.31,147.27,16.9756]
[1728294521048,16.385,147.31,147.28,1.3578126]
[1728294521269,16.385,147.31,147.29,6.789]
[1728294521450,16.385,147.31,147.28,6.7896]
[1728294521857,16.385,147.31,147.29,6.7892]
[1728294522057,16.385,147.31,147.28,6.7895]
[1728294522662,16.385,147.31,147.29,6.7892]
[1728294522972,1.69726905,147.33,147.31,6.7881]
[1728294523872,1.69708215,147.34,147.31,6.7881]
[1728294524275,16.1301,147.35,147.32,6.7878]
[1728294524459,17.82698448,147.35,147.32,6.7878]
[1728294524774,1.69693405,147.38,147.33,18.32574724]
[1728294524943,6.7851,147.39,147.34,6.7865]
[1728294525146,1.69655278,147.38,147.34,6.7865]
[1728294525350,1.69655278,147.38,147.33,23.7555]
[1728294525351,8.48195278,147.38,147.33,23.7555]
[1728294526773,6.7856,147.37,147.33,23.7555]
[1728294527082,8.48280063,147.36,147.3,16.9714]
[1728294527260,8.48280063,147.36,147.31,6.7882]
[1728294527589,6.787,147.35,147.3,23.7601]
[1728294527749,8.48428215,147.34,147.3,23.76]
[1728294528277,1.69698215,147.34,147.3,23.76]
[1728294528663,1.69698215,147.34,147.31,6.7883]
[1728294530278,21.8766,147.35,147.31,8.14587913]
[1728294530449,1.69689192,147.34,147.31,6.7883]
[1728294531976,15.0901,147.35,147.3,18.32891353]
[1728294532181,15.0901,147.35,147.33,6.7873]
[1728294532384,15.0901,147.35,147.32,23.7573]
[1728294532750,15.0901,147.35,147.32,16.9695]
[1728294533066,15.0901,147.35,147.33,6.7874]
[1728294533580,15.0901,147.35,147.32,23.7572]
[1728294533881,1.69680599,147.34,147.32,16.9695]
[1728294535154,1.69680599,147.34,147.31,6.7882]
[1728294535580,21.8768,147.35,147.31,6.7882]
[1728294536604,15.0901,147.35,147.32,6.7878]
[1728294540593,1.69685628,147.34,147.31,23.88439]
[1728294540882,21.8766,147.35,147.31,23.88439]
[1728294541890,8.48395574,147.34,147.31,16.9707]
[1728294543389,8.48395574,147.34,147.27,14.8792508]
[1728294543390,1.69685574,147.34,147.27,43.902374]
[1728294543591,6.7879,147.32,147.28,16.9736]
[1728294543885,6.7879,147.32,147.29,0.12549]
[1728294544384,6.7879,147.32,147.28,23.763]
[1728294544560,8.48564906,147.31,147.28,16.9736]
[1728294545066,8.48564906,147.31,147.28,23.7633]
[1728294545787,6.7881,147.32,147.28,23.7633]
[1728294546384,1.69726762,147.31,147.26,0.25098]
[1728294546563,18.66526525,147.34,147.26,0.12549]
[1728294546771,6.7887,147.31,147.27,6.7901]
[1728294547091,1.69739568,147.3,147.27,6.7901]
[1728294548457,6.7889,147.3,147.27,6.7901]
[1728294548875,6.7889,147.3,147.26,1.48340502]
[1728294549080,8.48672728,147.29,147.26,6.7905]
[1728294549364,8.48672728,147.29,147.25,23.7677]
[1728294549880,1.69749752,147.33,147.26,6.7907]
[1728294550072,6.7891,147.3,147.26,6.7907]
[1728294550262,8.48678857,147.29,147.25,23.7677]
[1728294551387,16.0705,147.3,147.26,1.35799635]
[1728294551564,16.0705,147.3,147.27,6.79]
[1728294556596,22.0991,147.36,147.28,1.35791311]
[1728294556771,6.7879,147.32,147.28,6.7896]
[1728294556971,1.69722476,147.31,147.28,6.7896]
[1728294557300,24.77042476,147.31,147.27,6.91549]
[1728294557971,24.77072476,147.31,147.27,6.7902]
[1728294558493,6.7889,147.3,147.27,6.7902]
[1728294558677,8.48635165,147.3,147.27,6.7902]
[1728294559584,8.48635165,147.3,147.26,18.33366061]
[1728294559784,8.48635165,147.3,147.26,23.7661]
[1728294560096,16.2848,147.31,147.28,6.7896]
[1728294560272,24.77052237,147.31,147.27,6.7901]
[1728294560473,6.7889,147.3,147.26,23.7662]
[1728294560673,1.6974514,147.29,147.23,16.9793]
[1728294560895,6.7902,147.27,147.23,23.7712]
[1728294561090,1.69779343,147.26,147.23,23.7712]
[1728294561604,1.69779343,147.26,147.23,16.9793]
[1728294561795,6.7908,147.26,147.22,6.7924]
[1728294561999,1.69801109,147.25,147.22,6.7924]
[1728294562198,1.69801109,147.25,147.21,6.7928]
[1728294562386,1.69801109,147.25,147.21,8.15122953]
[1728294564607,1.69801109,147.25,147.2,16.9828]
[1728294564795,6.7916,147.24,147.2,16.9828]
[1728294564997,1.69829019,147.24,147.2,16.9828]
[1728294565186,1.69829019,147.24,147.21,6.7929]
[1728294565388,1.69829019,147.24,147.2,16.9828]
[1728294565690,8.48989019,147.24,147.2,16.9828]
[1728294565914,6.7921,147.23,147.2,16.9828]
[1728294566090,1.69832722,147.22,147.19,6.7937]
[1728294566289,1.69832886,147.25,147.19,6.7937]
[1728294566497,6.7917,147.24,147.19,6.7937]
[1728294566813,8.49050173,147.23,147.19,6.7937]
[1728294568716,1.69830173,147.23,147.17,16.9863]
[1728294568919,21.6429,147.26,147.17,16.9863]
[1728294568920,6.793,147.21,147.17,23.7808]
[1728294569208,1.69849375,147.2,147.17,23.7808]
[1728294569511,15.1927,147.21,147.18,6.7943]
[1728294569696,16.89114289,147.21,147.18,6.7943]
[1728294570789,16.89114289,147.21,147.17,23.7809]
[1728294571205,23.68424289,147.21,147.17,23.7809]
[1728294573803,16.89114289,147.21,147.17,16.9863]
[1728294574008,15.1927,147.21,147.18,6.7943]
[1728294575014,21.9857,147.21,147.17,23.7809]
[1728294576004,6.7935,147.2,147.17,16.9863]
[1728294576204,1.69868679,147.19,147.17,16.9863]
[1728294576617,15.1927,147.21,147.18,6.7944]
[1728294580216,21.9857,147.21,147.18,6.7944]
[1728294582204,21.9857,147.21,147.17,23.7809]
[1728294582405,6.7935,147.2,147.17,23.7809]
[1728294582708,1.69868555,147.19,147.17,23.7809]
[1728294582905,1.69868555,147.19,147.17,16.9863]
[1728294585610,1.69875355,147.2,147.17,23.781]
[1728294588331,8.49215355,147.2,147.17,23.781]
[1728294591428,8.49215355,147.2,147.17,16.9863]
[1728294594309,1.69875355,147.2,147.17,23.7811]
[1728294594510,1.69875355,147.2,147.18,6.7943]
[1728294594712,1.69875355,147.2,147.17,23.7809]
[1728294595424,1.69875355,147.2,147.18,6.7943]
[1728294596842,15.1927,147.21,147.18,6.530256]
[1728294597145,16.8911816,147.21,147.18,6.530256]
[1728294598444,1.69849845,147.24,147.19,16.9847]
[1728294599241,8.49049845,147.24,147.2,6.7931]
[1728294599537,6.7921,147.23,147.19,23.7784]
[1728294599743,1.69836277,147.22,147.19,23.7784]
[1728294600638,6.793,147.21,147.18,6.7942]
[1728294600946,1.69847594,147.2,147.18,6.7942]
[1728294601140,35.1153,147.25,147.18,6.7942]
[1728294601141,1.69849753,147.24,147.19,6.7938]
[1728294601326,1.69849753,147.24,147.21,6.7929]
[1728294601327,8.49019753,147.24,147.21,6.7929]
[1728294601644,1.69816669,147.25,147.23,6.792]
[1728294601938,1.69794871,147.26,147.23,6.792]
[1728294602338,8.48864871,147.26,147.22,23.7735]
[1728294602847,8.4892099,147.25,147.21,6.7926]
[1728294603338,8.4892099,147.25,147.22,6.7925]
[1728294603845,8.4892099,147.25,147.21,23.7751]
[1728294605325,1.6980099,147.25,147.19,0.12549]
[1728294605526,6.7921,147.23,147.19,6.91919]
[1728294605727,1.69824071,147.22,147.19,6.91919]
[1728294606140,6.7918,147.24,147.2,6.7932]
[1728294606353,1.69819775,147.23,147.2,6.7932]
[1728294606845,1.69819775,147.23,147.2,23.7767]
[1728294607029,1.69819775,147.23,147.2,16.9834]
[1728294607233,6.7926,147.22,147.18,6.7941]
[1728294607441,1.69837414,147.21,147.18,6.7941]
[1728294608544,1.69837414,147.21,147.17,16.9863]
[1728294608727,6.7935,147.2,147.17,16.9863]
[1728294608919,1.69867247,147.19,147.17,16.9863]
[1728294609524,1.69867247,147.19,147.16,6.795]
[1728294609729,1.69867247,147.19,147.15,1.35897836]
[1728294610053,1.69867247,147.19,147.16,6.7952]
[1728294611057,8.49267247,147.19,147.15,6.7956]
[1728294611535,1.69867247,147.19,147.14,16.9896]
[1728294611725,6.7945,147.18,147.14,23.7855]
[1728294611925,1.69884974,147.17,147.14,23.7855]
[1728294614657,6.7953,147.16,147.12,6.7969]
[1728294614851,8.49527402,147.15,147.11,23.8904]
[1728294615049,8.49497402,147.15,147.11,23.8903]
[1728294615230,1.69917402,147.15,147.11,17.0931]
[1728294615433,1.69919859,147.18,147.11,17.0931]
[1728294615844,6.7956,147.16,147.12,6.797]
[1728294616052,1.69920669,147.15,147.11,17.0931]
[1728294616257,6.7958,147.15,147.11,23.8906]
[1728294616451,1.69920624,147.14,147.11,23.8906]
[1728294616833,1.69920624,147.14,147.11,17.0931]
[1728294617155,1.69920624,147.14,147.11,0.1]
[1728294617358,33.5857,147.19,147.11,0.1]
[1728294617359,40.242584,147.17,147.11,0.1]
[1728294617657,6.7967,147.13,147.11,0.1]
[1728294617858,1.6994792,147.12,147.11,0.1]
[1728294618356,8.4965792,147.12,147.11,0.1]
[1728294619960,1.69953959,147.16,147.11,0.1]
[1728294620258,6.7963,147.14,147.11,0.1]
[1728294620469,1.69941068,147.13,147.11,0.1]
[1728294620829,6.7958,147.15,147.11,6.8975]
[1728294621057,1.69927447,147.14,147.11,6.8975]
[1728294622633,8.49567447,147.14,147.11,0.1]
[1728294624859,1.69927447,147.14,147.11,6.8974]
[1728294625065,1.69926245,147.14,147.11,6.8974]
[1728294628062,8.49465473,147.16,147.12,8.15620378]
[1728294628245,1.69925473,147.16,147.13,6.7966]
[1728294628442,1.69925473,147.16,147.11,0.1]
[1728294628654,6.7967,147.13,147.11,0.1]
[1728294629146,1.69925473,147.16,147.11,0.1]
[1728294629345,6.7964,147.14,147.11,0.1]
[1728294629554,1.69934985,147.13,147.11,0.1]
[1728294631977,6.7967,147.13,147.11,0.1]
[1728294632148,8.4965875,147.12,147.11,0.1]
[1728294632470,6.7971,147.12,147.11,0.1]
[1728294637074,6.7968,147.13,147.11,0.1]
[1728294637376,8.49653753,147.12,147.11,0.1]
[1728294637577,6.7971,147.12,147.11,0.1]
[1728294638661,6.7968,147.13,147.11,0.1]
[1728294638882,1.69943561,147.12,147.11,0.1]
[1728294639379,6.7968,147.13,147.11,0.1]
[1728294640979,8.49583627,147.14,147.11,0.1]
[1728294641182,6.7964,147.14,147.11,0.1]
[1728294643178,6.7967,147.13,147.11,0.1]
[1728294649085,8.49641629,147.12,147.11,0.1]
[1728294656776,6.7968,147.13,147.11,0.1]
[1728294656972,1.69935789,147.12,147.11,0.1]
[1728294657180,6.7967,147.13,147.11,0.1]
[1728294657479,6.7971,147.12,147.11,0.1]
[1728294658065,6.7969,147.13,147.11,0.1]
[1728294659689,1.69941857,147.15,147.11,0.1]
[1728294659897,6.7965,147.14,147.11,0.1]
[1728294660399,6.7968,147.13,147.11,0.1]
[1728294661001,6.7964,147.14,147.11,0.1]
[1728294661175,1.6992412,147.16,147.11,0.22549]
[1728294661372,18.16475465,147.17,147.11,0.22549]
[1728294661572,6.7954,147.16,147.12,23.7896]
[1728294661773,6.7954,147.16,147.13,1.35917342]
[1728294661990,24.95975465,147.17,147.13,8.15577342]
[1728294662188,6.7954,147.16,147.13,1.35917342]
[1728294662380,6.7958,147.15,147.12,23.7898]
[1728294662882,6.7967,147.13,147.11,0.1]
[1728294663799,6.7964,147.14,147.11,0.1]
[1728294663999,8.49568751,147.14,147.11,0.1]
[1728294664373,1.69928759,147.16,147.11,0.1]
[1728294664589,6.7964,147.14,147.11,0.1]
[1728294665102,1.69928759,147.16,147.11,6.8974]
[1728294665103,6.7959,147.15,147.11,6.8974]
[1728294665470,6.7959,147.15,147.12,1.35931536]
[1728294665788,6.7959,147.15,147.11,6.8974]
[1728294667293,6.7962,147.14,147.11,0.1]
[1728294667501,1.69916473,147.14,147.11,0.1]
[1728294667684,33.4531,147.17,147.11,0.1]
[1728294667685,1.69931872,147.16,147.11,0.1]
[1728294668476,6.7967,147.13,147.11,0.1]
[1728294669202,33.4531,147.17,147.11,0.1]
[1728294669203,8.49647231,147.12,147.11,0.1]
[1728294670492,1.69937231,147.12,147.11,0.1]
[1728294670686,6.7964,147.14,147.11,0.1]
[1728294670892,1.6993541,147.16,147.11,6.8975]
[1728294670893,6.7961,147.15,147.11,6.8975]
[1728294671098,8.49535564,147.14,147.11,0.1]
[1728294672785,6.7962,147.14,147.11,1.45940906]
[1728294672983,6.7962,147.14,147.11,8.25690906]
[1728294673680,6.7959,147.15,147.11,8.25690906]
[1728294674696,6.7955,147.16,147.13,6.7966]
[1728294675013,18.16485337,147.17,147.13,8.15572821]
[1728294675014,6.7951,147.17,147.13,8.15572821]
[1728294675801,1.69885139,147.2,147.13,1.35912821]
[1728294676011,6.7948,147.18,147.14,6.7962]
[1728294677011,6.7953,147.16,147.13,6.7966]
[1728294677807,6.7953,147.16,147.13,8.15573955]
[1728294677999,6.795,147.17,147.13,8.15573955]
[1728294681414,6.72662867,147.17,147.13,8.15573955]
[1728294681999,1.69892455,147.2,147.13,1.35913955]
[1728294682313,1.69892455,147.2,147.14,6.796]
[1728294682314,6.7945,147.18,147.14,6.796]
[1728294682815,6.7948,147.17,147.14,6.796]
[1728294684114,1.69892455,147.2,147.15,8.15474395]
[1728294684316,8.49252455,147.2,147.16,6.795]
[1728294684522,6.7936,147.2,147.16,23.7832]
[1728294684726,6.7936,147.2,147.17,1.35880109]
[1728294685205,6.7936,147.2,147.16,23.7832]
[1728294685409,16.75478703,147.21,147.16,23.7832]
[1728294685703,6.5013,147.23,147.18,6.7942]